bitfinex/quotes_BTCUSD_20260110
["timestamp","ask_amount","ask_price","bid_price","bid_amount"]
[1768068381674,0.04669637,90539.0,90529.0,0.01104618]
[1768068381929,0.04669637,90539.0,90526.0,0.01104655]
[1768068382169,0.04669637,90539.0,90527.0,0.01104642]
[1768068382420,0.0110463,90538.0,90528.0,0.0110463]
[1768068382630,0.0110463,90538.0,90525.0,0.06647947]
[1768068382860,0.0110463,90538.0,90525.0,0.0002]
[1768068383072,0.0110463,90538.0,90526.0,0.01104655]
[1768068383287,0.0110463,90538.0,90525.0,0.0002]
[1768068383492,0.02209138,90538.0,90525.0,0.0002]
[1768068383893,0.05774267,90538.0,90525.0,0.0002]
[1768068384389,0.04669637,90537.0,90525.0,0.0002]
[1768068385373,0.04669637,90537.0,90525.0,0.01124667]
[1768068385536,0.04669637,90537.0,90525.0,0.0002]
[1768068386580,0.04669637,90537.0,90525.0,0.01124667]
[1768068386974,0.04669637,90537.0,90525.0,0.0002]
[1768068387578,0.04669637,90537.0,90525.0,0.01124667]
[1768068387981,0.04669637,90537.0,90525.0,0.0002]
[1768068388435,0.04669637,90537.0,90525.0,0.01124667]
[1768068388639,0.04669637,90537.0,90525.0,0.0002]
[1768068388764,0.04669637,90537.0,90525.0,0.01124667]
[1768068388965,0.05774157,90537.0,90525.0,0.0002]
[1768068389165,0.05774157,90537.0,90525.0,0.01124667]
[1768068389166,0.04669637,90537.0,90525.0,0.01124667]
[1768068389412,0.01124667,90536.0,90526.0,0.01104655]
[1768068389765,0.02212,90535.0,90526.0,0.01104655]
[1768068389968,0.02212,90535.0,90525.0,0.01124667]
[1768068390229,0.02212,90535.0,90525.0,0.0002]
[1768068390426,0.01124667,90534.0,90525.0,0.01124667]
[1768068391412,0.01124667,90534.0,90527.0,0.01104642]
[1768068391608,0.01124667,90534.0,90525.0,0.0002]
[1768068391836,0.01124667,90534.0,90526.0,0.01104655]
[1768068392050,0.01124667,90534.0,90525.0,0.01124667]
[1768068392443,0.01124667,90534.0,90526.0,0.01104655]
[1768068392647,0.01124667,90534.0,90525.0,0.01124667]
[1768068393231,0.01124667,90534.0,90526.0,0.01104655]
[1768068393434,0.01124667,90534.0,90525.0,0.01124667]
[1768068393633,0.01124667,90534.0,90525.0,0.0002]
[1768068393836,0.01124667,90534.0,90526.0,0.01104655]
[1768068394391,0.01124667,90534.0,90527.0,0.01104642]
[1768068394608,0.01124667,90534.0,90514.0,0.0002]
[1768068394609,0.04867305,90526.0,90514.0,0.0002]
[1768068394739,0.04761984,90523.0,90514.0,0.0002]
[1768068394934,0.10599653,90517.0,90514.0,0.0002]
[1768068395161,0.10599653,90517.0,90508.0,0.01104874]
[1768068395560,0.10599653,90517.0,90509.0,0.01104862]
[1768068395762,0.03315944,90516.0,90508.0,0.01104874]
[1768068395962,0.08083349,90516.0,90507.0,0.06629319]
[1768068396167,0.10599653,90512.0,90502.0,0.00023349]
[1768068396391,0.03315944,90516.0,90508.0,0.01104874]
[1768068396587,0.03315944,90516.0,90509.0,0.01104862]
[1768068396792,0.0002207,90538.0,90518.0,0.01104752]
[1768068396966,0.03315512,90527.0,90526.0,0.01104655]
[1768068397166,0.03315512,90527.0,90526.0,0.0662793]
[1768068397448,0.02210347,90536.0,90526.0,0.0662793]
[1768068397449,0.02039171,90536.0,90529.0,0.01104618]
[1768068397719,4.274e-05,90539.0,90529.0,0.01104618]
[1768068397720,4.274e-05,90539.0,90532.0,0.01104581]
[1768068397941,4.274e-05,90539.0,90531.0,0.01104594]
[1768068398136,4.274e-05,90539.0,90529.0,0.01104618]
[1768068398366,4.274e-05,90539.0,90528.0,0.0110463]
[1768068398504,4.274e-05,90539.0,90529.0,0.01104618]
[1768068398704,4.274e-05,90539.0,90530.0,0.01104606]
[1768068398933,4.274e-05,90539.0,90529.0,0.01104618]
[1768068399960,4.274e-05,90539.0,90530.0,0.01104606]
[1768068400371,4.274e-05,90539.0,90529.0,0.01104618]
[1768068401400,4.274e-05,90539.0,90530.0,0.01104606]
[1768068402415,4.274e-05,90539.0,90531.0,0.01104594]
[1768068402643,4.274e-05,90539.0,90530.0,0.01104606]
[1768068403565,4.274e-05,90539.0,90531.0,0.01104594]
[1768068404049,4.274e-05,90539.0,90532.0,0.01104581]
[1768068404196,4.274e-05,90539.0,90531.0,0.01104594]
[1768068404612,4.274e-05,90539.0,90532.0,0.01104581]
[1768068404817,4.274e-05,90539.0,90531.0,0.01104594]
[1768068406076,0.03245443,90542.0,90531.0,0.01104594]
[1768068406367,0.08043122,90544.0,90533.0,0.01104569]
[1768068406590,0.03316618,90543.0,90533.0,0.01104569]
[1768068407280,0.03316618,90543.0,90532.0,0.01104581]
[1768068407488,0.02251,90546.0,90533.0,0.04720837]
[1768068407685,0.02251,90546.0,90539.0,0.01104496]
[1768068408225,0.02251,90546.0,90540.0,0.01104484]
[1768068408448,0.02251,90546.0,90539.0,0.01104496]
[1768068408675,0.00039,90546.0,90539.0,0.01104496]
[1768068409075,0.00039,90546.0,90538.0,0.05825345]
[1768068410214,0.00039,90546.0,90538.0,0.04720837]
[1768068410584,0.00039,90546.0,90538.0,0.05825345]
[1768068411216,0.00039,90546.0,90538.0,0.01104508]
[1768068412223,0.00039,90546.0,90536.0,0.03315087]
[1768068412420,0.00039,90546.0,90536.0,0.0441962]
[1768068413026,0.00039,90546.0,90537.0,0.0110452]
[1768068413317,0.00039,90546.0,90536.0,0.0441962]
[1768068413522,0.00039,90546.0,90537.0,0.0110452]
[1768068413707,0.00039,90546.0,90536.0,0.0441962]
[1768068414374,0.00039,90546.0,90537.0,0.0110452]
[1768068415752,0.00039,90546.0,90536.0,0.0441962]
[1768068415963,0.00039,90546.0,90537.0,0.0110452]
[1768068416660,0.00039,90546.0,90538.0,0.01104508]
[1768068417119,0.00039,90546.0,90539.0,0.01104496]
[1768068417314,0.00039,90546.0,90538.0,0.01104508]
[1768068417490,0.00039,90546.0,90539.0,0.01104496]
[1768068417909,0.00039,90546.0,90538.0,0.01104508]
[1768068418154,0.00039,90546.0,90539.0,0.01104496]
[1768068419223,0.00039,90546.0,90538.0,0.01104508]
[1768068419422,0.00039,90546.0,90537.0,0.0331652]
[1768068419943,0.00039,90546.0,90538.0,0.01104508]
[1768068420673,0.00039,90546.0,90537.0,0.0331652]
[1768068420825,0.00039,90546.0,90538.0,0.01104508]
[1768068421576,0.00039,90546.0,90539.0,0.01104496]
[1768068421812,0.00039,90546.0,90538.0,0.01104508]
[1768068421951,0.00039,90546.0,90537.0,0.0331652]
[1768068422171,0.00039,90546.0,90539.0,0.01104496]
[1768068422546,0.00039,90546.0,90540.0,0.01104484]
[1768068422723,0.00039,90546.0,90542.0,0.01104459]
[1768068423020,0.00039,90546.0,90543.0,0.01104447]
[1768068423519,0.00039,90546.0,90542.0,0.01104459]
[1768068423721,0.00039,90546.0,90541.0,0.01104472]
[1768068423959,0.00039,90546.0,90540.0,0.01104484]
[1768068424319,0.00039,90546.0,90539.0,0.01104496]
[1768068424791,0.00039,90546.0,90540.0,0.01104484]
[1768068426372,0.00029975,90546.0,90541.0,0.04864666]
[1768068427123,0.00029975,90546.0,90539.0,0.01104496]
[1768068427508,0.00029975,90546.0,90540.0,0.01104484]
[1768068427838,0.0002095,90546.0,90540.0,0.01104484]
[1768068428038,0.0002095,90546.0,90539.0,0.01104496]
[1768068428236,0.0002095,90546.0,90540.0,0.01104484]
[1768068428442,0.00011924,90546.0,90540.0,0.01104484]
[1768068429395,0.00011924,90546.0,90539.0,0.01104496]
[1768068429604,0.00011924,90546.0,90540.0,0.01104484]
[1768068430070,0.00011924,90546.0,90539.0,0.01104496]
[1768068430771,0.00011924,90546.0,90540.0,0.01104484]
[1768068432105,0.00011924,90546.0,90539.0,0.01104496]
[1768068432849,2.897e-05,90546.0,90540.0,0.01104484]
[1768068437731,2.897e-05,90546.0,90539.0,0.01104496]
[1768068439333,2.897e-05,90546.0,90540.0,0.01104484]
[1768068441231,2.897e-05,90546.0,90539.0,0.01104496]
[1768068447611,2.897e-05,90546.0,90540.0,0.01104484]
[1768068447808,2.897e-05,90546.0,90539.0,0.01104496]
[1768068449938,2.897e-05,90546.0,90538.0,0.01104508]
[1768068450731,2.897e-05,90546.0,90538.0,0.01100029]
[1768068451362,2.897e-05,90546.0,90537.0,0.0110452]
[1768068451485,2.897e-05,90546.0,90538.0,0.01104508]
[1768068453389,2.897e-05,90546.0,90539.0,0.01104496]
[1768068454115,2.897e-05,90546.0,90538.0,0.01104508]
[1768068454332,2.897e-05,90546.0,90539.0,0.01104496]
[1768068454983,2.897e-05,90546.0,90538.0,0.01104508]
[1768068456435,2.897e-05,90546.0,90539.0,0.01104496]
[1768068456876,2.897e-05,90546.0,90540.0,0.01104484]
[1768068457527,2.897e-05,90546.0,90539.0,0.01104496]
[1768068457752,2.897e-05,90546.0,90538.0,0.01104508]
[1768068458642,2.897e-05,90546.0,90539.0,0.01104496]
[1768068460701,2.897e-05,90546.0,90538.0,0.01104508]
[1768068463870,2.897e-05,90546.0,90536.0,0.04864666]
[1768068464483,2.897e-05,90546.0,90536.0,0.05969199]
[1768068465499,2.897e-05,90546.0,90536.0,0.0595366]
[1768068466290,2.897e-05,90546.0,90536.0,0.05938123]
[1768068466620,2.897e-05,90546.0,90536.0,0.0483359]
[1768068467333,2.897e-05,90546.0,90536.0,0.05938123]
[1768068468606,2.897e-05,90546.0,90536.0,0.05922584]
[1768068469551,2.897e-05,90546.0,90536.0,0.04818051]
[1768068469841,2.897e-05,90546.0,90536.0,0.04802514]
[1768068470490,2.897e-05,90546.0,90536.0,0.03514459]
[1768068472835,2.897e-05,90546.0,90536.0,0.04618992]
[1768068473044,2.897e-05,90546.0,90536.0,0.03514459]
[1768068473725,2.897e-05,90546.0,90536.0,0.04618992]
[1768068473942,2.897e-05,90546.0,90536.0,0.03514459]
[1768068475696,2.897e-05,90546.0,90536.0,0.04618992]
[1768068476455,2.897e-05,90546.0,90537.0,0.0110452]
[1768068476667,2.897e-05,90546.0,90536.0,0.04618992]
[1768068477256,2.897e-05,90546.0,90536.0,0.03514459]
[1768068481946,2.897e-05,90546.0,90536.0,0.04618992]
[1768068482600,2.897e-05,90546.0,90536.0,0.03514459]
[1768068484102,2.897e-05,90546.0,90536.0,0.03414559]
[1768068484488,0.01107308,90546.0,90536.0,0.03414559]
[1768068488660,2.897e-05,90546.0,90536.0,0.03414559]
[1768068488868,0.01107308,90546.0,90536.0,0.03414559]
[1768068490723,2.897e-05,90546.0,90536.0,0.03414559]
[1768068491674,0.01107308,90546.0,90536.0,0.03414559]
[1768068491891,2.897e-05,90546.0,90536.0,0.03414559]
[1768068493487,0.01107308,90546.0,90536.0,0.03414559]
[1768068495631,2.897e-05,90546.0,90536.0,0.03414559]
[1768068503297,0.01107308,90546.0,90536.0,0.03414559]
[1768068503476,0.01104435,90544.0,90536.0,0.03414559]
[1768068503821,0.01107308,90546.0,90536.0,0.03414559]
[1768068505442,0.01107308,90546.0,90533.0,0.02212]
[1768068505443,0.01104435,90544.0,90533.0,0.02212]
[1768068505785,0.01104459,90542.0,90533.0,0.02212]
[1768068506356,0.01104447,90543.0,90533.0,0.02212]
[1768068506552,0.01104459,90542.0,90533.0,0.02212]
[1768068506755,0.01104447,90543.0,90533.0,0.02212]
[1768068506958,0.01104459,90542.0,90533.0,0.02212]
[1768068507161,0.01104435,90544.0,90533.0,0.02212]
[1768068507373,0.01107308,90546.0,90533.0,0.02212]
[1768068507788,2.897e-05,90546.0,90533.0,0.03316569]
[1768068508171,2.897e-05,90546.0,90535.0,0.01104545]
[1768068508371,2.897e-05,90546.0,90536.0,0.01104533]
[1768068508554,2.897e-05,90546.0,90535.0,0.01104545]
[1768068508758,2.897e-05,90546.0,90534.0,0.01104557]
[1768068509176,2.897e-05,90546.0,90535.0,0.01104545]
[1768068509814,2.897e-05,90546.0,90533.0,0.03316569]
[1768068510034,2.897e-05,90546.0,90533.0,0.07926555]
[1768068511929,0.01104398,90547.0,90533.0,0.07926555]
[1768068512533,0.01104398,90547.0,90533.0,0.06821986]
[1768068512751,0.01104423,90545.0,90533.0,0.06821986]
[1768068513093,0.01104435,90544.0,90533.0,0.06821986]
[1768068513357,0.01104423,90545.0,90533.0,0.06821986]
[1768068514155,0.01104435,90544.0,90533.0,0.06821986]
[1768068514537,0.01104447,90543.0,90533.0,0.06821986]
[1768068515268,0.01104435,90544.0,90533.0,0.06821986]
[1768068519360,0.01130053,90545.0,90533.0,0.06821986]
[1768068521736,0.0002563,90545.0,90533.0,0.06821986]
[1768068522078,0.01130053,90545.0,90533.0,0.06821986]
[1768068522884,0.0002563,90545.0,90533.0,0.06821986]
[1768068527297,0.01130053,90545.0,90533.0,0.06817478]
[1768068527547,0.01104435,90544.0,90533.0,0.06812971]
[1768068527717,0.01130053,90545.0,90533.0,0.06812971]
[1768068530953,0.01104435,90544.0,90533.0,0.06812971]
[1768068532189,0.01104447,90543.0,90533.0,0.06812971]
[1768068533557,0.01104435,90544.0,90533.0,0.06812971]
[1768068534559,0.01130053,90545.0,90533.0,0.06812971]
[1768068534764,0.0002563,90545.0,90533.0,0.06812971]
[1768068534966,0.01104435,90544.0,90533.0,0.06812971]
[1768068535174,0.01130053,90545.0,90533.0,0.06812971]
[1768068535588,0.0002563,90545.0,90533.0,0.06812971]
[1768068536364,0.01130053,90545.0,90533.0,0.06812971]
[1768068538782,0.0002563,90545.0,90533.0,0.06812971]
[1768068542395,0.01130053,90545.0,90533.0,0.06812971]
[1768068542624,0.0002563,90545.0,90533.0,0.06812971]
[1768068543476,0.01130053,90545.0,90533.0,0.06812971]
[1768068547558,0.0002563,90545.0,90533.0,0.06812971]
[1768068548543,0.01130053,90545.0,90533.0,0.06812971]
[1768068548824,0.0002563,90545.0,90533.0,0.06812971]
[1768068549789,0.01130053,90545.0,90533.0,0.06812971]
[1768068550526,0.0002563,90545.0,90533.0,0.06812971]
[1768068551398,0.01130053,90545.0,90533.0,0.06812971]
[1768068553791,0.01104435,90544.0,90533.0,0.06812971]
[1768068554200,0.01130053,90545.0,90533.0,0.06812971]
[1768068556585,0.01104435,90544.0,90533.0,0.06812971]
[1768068557005,0.01130053,90545.0,90533.0,0.06812971]
[1768068558217,0.01104435,90544.0,90533.0,0.06812971]
[1768068558898,0.01104447,90543.0,90533.0,0.06812971]
[1768068559104,0.01104435,90544.0,90533.0,0.06812971]
[1768068559649,0.01104447,90543.0,90533.0,0.06812971]
[1768068559780,0.01104435,90544.0,90533.0,0.06812971]
[1768068562531,0.01130053,90545.0,90533.0,0.06812971]
[1768068563013,0.01104435,90544.0,90533.0,0.06812971]
[1768068564205,0.0002563,90545.0,90533.0,0.06812971]
[1768068564365,0.01130053,90545.0,90533.0,0.06812971]
[1768068565387,0.05720528,90544.0,90533.0,0.02202985]
[1768068565610,0.04616093,90542.0,90533.0,0.02202985]
[1768068565818,0.05720552,90542.0,90533.0,0.02202985]
[1768068566536,0.05731152,90542.0,90531.0,5.064e-05]
[1768068570087,0.01115059,90542.0,90531.0,5.064e-05]
[1768068574290,0.000106,90542.0,90531.0,5.064e-05]
[1768068579352,0.000106,90542.0,90531.0,0.01109658]
[1768068580898,0.000106,90542.0,90532.0,0.01104581]
[1768068581055,0.000106,90542.0,90531.0,0.01109658]
[1768068581256,0.000106,90542.0,90532.0,0.01104581]
[1768068581441,0.000106,90542.0,90531.0,0.01109658]
[1768068581680,0.000106,90542.0,90532.0,0.01104581]
[1768068581914,0.000106,90542.0,90532.0,0.00893142]
[1768068582115,0.000106,90542.0,90531.0,0.01109658]
[1768068583536,0.000106,90542.0,90532.0,0.01104581]
[1768068583874,0.000106,90542.0,90531.0,5.064e-05]
[1768068584593,1.584e-05,90542.0,90531.0,5.064e-05]
[1768068586621,1.584e-05,90542.0,90531.0,0.01109658]
[1768068586950,1.584e-05,90542.0,90531.0,5.064e-05]
[1768068587149,0.00025498,90533.0,90531.0,0.05003886]
[1768068587303,1.584e-05,90542.0,90533.0,8.919e-05]
[1768068587508,1.584e-05,90542.0,90531.0,0.05003886]
[1768068588726,0.01106043,90542.0,90531.0,0.05003886]
[1768068591035,1.584e-05,90542.0,90531.0,0.05003886]
[1768068592557,0.01104508,90538.0,90531.0,5.064e-05]
[1768068592769,0.01104496,90539.0,90531.0,5.064e-05]
[1768068592898,0.01104484,90540.0,90531.0,5.064e-05]
[1768068595139,0.01104496,90539.0,90531.0,5.064e-05]
[1768068595571,0.01104484,90540.0,90531.0,5.064e-05]
[1768068596908,0.01104472,90541.0,90531.0,5.064e-05]
[1768068600820,0.01104484,90540.0,90531.0,5.064e-05]
[1768068601188,0.01104496,90539.0,90531.0,5.064e-05]
[1768068601367,0.01104484,90540.0,90531.0,5.064e-05]
[1768068601991,0.01104508,90538.0,90531.0,5.064e-05]
[1768068602184,0.01104484,90540.0,90531.0,5.064e-05]
[1768068602387,0.0110452,90537.0,90531.0,5.064e-05]
[1768068602712,0.01104508,90538.0,90531.0,5.064e-05]
[1768068603518,0.01104496,90539.0,90531.0,5.064e-05]
[1768068603738,0.01104484,90540.0,90531.0,5.064e-05]
[1768068603941,0.01104472,90541.0,90531.0,5.064e-05]
[1768068604275,0.01104459,90542.0,90531.0,5.064e-05]
[1768068606334,0.01104472,90541.0,90531.0,5.064e-05]
[1768068607485,0.00016614,90545.0,90536.0,0.04943177]
[1768068607633,0.00016614,90545.0,90542.0,0.04943177]
[1768068607834,0.00016614,90545.0,90533.0,0.01104569]
[1768068608082,0.00016614,90545.0,90534.0,0.06047734]
[1768068608464,0.00016614,90545.0,90534.0,0.04943177]
[1768068608671,0.00016614,90545.0,90534.0,0.06047734]
[1768068609095,0.00016614,90545.0,90534.0,0.04943177]
[1768068609670,0.01121037,90545.0,90534.0,0.04943177]
[1768068609874,0.00016614,90545.0,90534.0,0.04943177]
[1768068616541,0.01121037,90545.0,90534.0,0.04943177]
[1768068616727,0.01104435,90544.0,90534.0,0.04943177]
[1768068617160,0.01104435,90544.0,90535.0,0.03315025]
[1768068618132,0.01104447,90543.0,90535.0,0.03315025]
[1768068622323,0.01104447,90543.0,90531.0,5.064e-05]
[1768068622828,0.01104447,90543.0,90533.0,0.03315025]
[1768068623193,0.01104447,90543.0,90531.0,5.064e-05]
[1768068623380,0.01104459,90542.0,90531.0,5.064e-05]
[1768068623580,0.01104447,90543.0,90531.0,5.064e-05]
[1768068623779,0.01104435,90544.0,90531.0,5.064e-05]
[1768068626340,0.01104447,90543.0,90531.0,5.064e-05]
[1768068629851,0.01104435,90544.0,90531.0,5.064e-05]
[1768068630230,0.01104447,90543.0,90531.0,5.064e-05]
[1768068635975,0.01104459,90542.0,90531.0,5.064e-05]
[1768068636281,0.01104447,90543.0,90531.0,5.064e-05]
[1768068637213,0.01104435,90544.0,90531.0,5.064e-05]
[1768068637462,0.05791911,90545.0,90531.0,0.01109658]
[1768068638065,0.04687488,90545.0,90531.0,0.01109658]
[1768068638974,0.05791911,90545.0,90531.0,5.064e-05]
[1768068641147,0.01104435,90544.0,90531.0,5.064e-05]
[1768068641733,0.01104447,90543.0,90531.0,5.064e-05]
[1768068641890,0.01104435,90544.0,90531.0,5.064e-05]
[1768068642764,0.01104447,90543.0,90531.0,5.064e-05]
[1768068642959,0.01104459,90542.0,90531.0,5.064e-05]
[1768068643093,0.01104447,90543.0,90531.0,5.064e-05]
[1768068646744,0.01104459,90542.0,90531.0,5.064e-05]
[1768068649471,0.29322043,90541.0,90531.0,5.064e-05]
[1768068659050,0.01104459,90542.0,90531.0,5.064e-05]
[1768068659277,0.01104447,90543.0,90531.0,5.064e-05]
[1768068660099,0.29322043,90541.0,90531.0,5.064e-05]
[1768068665927,0.29322043,90541.0,90531.0,5.58e-06]
[1768068680127,0.01104435,90544.0,90531.0,5.58e-06]
[1768068682130,0.01104435,90544.0,90529.0,0.09314309]
[1768068682613,0.01104447,90543.0,90529.0,0.08209691]
[1768068682818,0.01104459,90542.0,90529.0,0.08209691]
[1768068684004,0.01104472,90541.0,90529.0,0.08209691]
[1768068684222,0.01104459,90542.0,90529.0,0.08209691]
[1768068684618,0.01104484,90540.0,90529.0,0.08209691]
[1768068684822,0.30426527,90540.0,90529.0,0.04894666]
[1768068685046,0.30426527,90540.0,90529.0,0.0599915]
[1768068685382,0.29322043,90540.0,90529.0,0.0599915]
[1768068686813,0.29322043,90540.0,90529.0,0.05994645]
[1768068691202,0.29322043,90540.0,90529.0,0.07099263]
[1768068691610,0.29322043,90540.0,90529.0,0.05994645]
[1768068693359,0.29322043,90540.0,90529.0,0.07099263]
[1768068693587,0.01104447,90543.0,90529.0,0.07099263]
[1768068694753,0.05973816,90543.0,90529.0,0.02209102]
[1768068695251,0.04869369,90543.0,90529.0,0.02209102]
[1768068695465,0.04869369,90543.0,90530.0,0.01104606]
[1768068695685,0.29322043,90540.0,90530.0,0.01104606]
[1768068696673,0.29322043,90540.0,90529.0,0.02209102]
[1768068697200,0.29322043,90540.0,90530.0,0.01104606]
[1768068697604,0.29322043,90540.0,90529.0,0.02209102]
[1768068698295,0.29322043,90540.0,90530.0,0.01104606]
[1768068698436,0.29322043,90540.0,90529.0,0.02209102]
[1768068699256,0.29322043,90540.0,90529.0,0.01104484]
[1768068699572,0.29322043,90540.0,90529.0,0.02209102]
[1768068700157,0.29322043,90540.0,90530.0,0.01104606]
[1768068700935,0.29322043,90540.0,90529.0,0.02209102]
[1768068701084,0.29322043,90540.0,90530.0,0.01104606]
[1768068701514,0.29322043,90540.0,90529.0,0.01104618]
[1768068701915,0.29322043,90540.0,90530.0,0.01104606]
[1768068702325,0.29322043,90540.0,90530.0,0.0110888]
[1768068702456,0.29322043,90540.0,90530.0,4.274e-05]
[1768068702861,0.29322043,90540.0,90530.0,0.0110888]
[1768068703200,0.29322043,90540.0,90530.0,4.274e-05]
[1768068708593,0.04869369,90543.0,90530.0,4.274e-05]
[1768068709621,0.05973816,90543.0,90530.0,4.274e-05]
[1768068709791,0.04869369,90543.0,90530.0,4.274e-05]
[1768068709988,0.05973816,90543.0,90530.0,4.274e-05]
[1768068710529,0.04869369,90543.0,90530.0,4.274e-05]
[1768068711096,0.04869369,90543.0,90530.0,0.0110888]
[1768068713803,0.04869369,90543.0,90531.0,0.01104594]
[1768068714041,0.04869369,90543.0,90530.0,0.0110888]
[1768068714726,0.04869369,90543.0,90531.0,0.01104594]
[1768068715293,0.04869369,90543.0,90530.0,0.0110888]
[1768068716023,0.04869369,90543.0,90531.0,0.01104594]
[1768068716798,0.04869369,90543.0,90530.0,0.0110888]
[1768068716945,0.04869369,90543.0,90531.0,0.01104594]
[1768068717144,0.04869369,90543.0,90532.0,0.01104581]
[1768068717351,0.04869369,90543.0,90531.0,0.01104594]
[1768068718821,0.04869369,90543.0,90530.0,0.0110888]
[1768068719811,0.04869369,90543.0,90531.0,0.01104594]
[1768068720032,0.04869369,90543.0,90530.0,0.0110888]
[1768068724231,0.04869369,90543.0,90531.0,0.01104594]
[1768068724429,0.04869369,90543.0,90530.0,0.0110888]
[1768068725178,0.05973816,90543.0,90530.0,4.274e-05]
[1768068725391,0.04869369,90543.0,90530.0,0.0110888]
[1768068726954,0.04869369,90543.0,90530.0,4.274e-05]
[1768068727161,0.01104459,90542.0,90530.0,4.274e-05]
[1768068728627,0.05973816,90543.0,90530.0,4.274e-05]
[1768068729076,0.04869369,90543.0,90530.0,4.274e-05]
[1768068729287,0.05973816,90543.0,90530.0,4.274e-05]
[1768068729850,0.04869369,90543.0,90530.0,0.0110888]
[1768068730457,0.04869369,90543.0,90530.0,4.274e-05]
[1768068731421,0.04869369,90543.0,90530.0,0.0110888]
[1768068735302,0.04869369,90543.0,90530.0,0.0108116]
[1768068738474,0.04869369,90543.0,90531.0,0.01104594]
[1768068738648,0.04869369,90543.0,90530.0,0.0108116]
[1768068739538,0.04869369,90543.0,90531.0,0.01104594]
[1768068743027,0.04869369,90543.0,90533.0,0.01104569]
[1768068743245,0.04869369,90543.0,90532.0,0.01104581]
[1768068744224,0.04869369,90543.0,90533.0,0.01104569]
[1768068744567,0.04869369,90543.0,90532.0,0.01104581]
[1768068744950,0.04869369,90543.0,90532.0,0.01100102]
[1768068746304,0.04869369,90543.0,90533.0,0.01104569]
[1768068746708,0.04869369,90543.0,90532.0,0.01100102]
[1768068747850,0.04869369,90543.0,90533.0,0.01104569]
[1768068748126,0.04869369,90543.0,90532.0,0.01100102]
[1768068748283,0.04869369,90543.0,90533.0,0.01104569]
[1768068751798,0.04869369,90543.0,90534.0,0.01104557]
[1768068752033,0.04869369,90543.0,90533.0,0.01104569]
[1768068754512,0.04869369,90543.0,90534.0,0.01104557]
[1768068755049,0.04869369,90543.0,90533.0,0.01104569]
[1768068757136,0.04869369,90543.0,90534.0,0.01104557]
[1768068757308,0.04869369,90543.0,90533.0,0.01104569]
[1768068758582,0.04869369,90543.0,90532.0,0.01104581]
[1768068758875,0.04869369,90543.0,90530.0,0.01104606]
[1768068759235,0.04869369,90543.0,90531.0,0.01104594]
[1768068760035,0.04869369,90543.0,90530.0,0.01104606]
[1768068761043,0.04869369,90543.0,90529.0,0.01104618]
[1768068761239,0.04869369,90543.0,90530.0,0.01104606]
[1768068762268,0.05973816,90543.0,90528.0,0.0473027]
[1768068762513,0.05973816,90543.0,90529.0,0.01104618]
[1768068766740,0.04869369,90543.0,90529.0,0.01104618]
[1768068767338,0.05973816,90543.0,90529.0,0.01104618]
[1768068767840,0.04869369,90543.0,90529.0,0.01104618]
[1768068768540,0.29322529,90540.0,90529.0,0.01104618]
[1768068769778,0.29322529,90540.0,90530.0,0.01104606]
[1768068770487,0.02212,90542.0,90530.0,0.01104606]
[1768068771939,0.02212,90542.0,90529.0,0.01104618]
[1768068772736,0.02212,90542.0,90528.0,0.058349]
[1768068772938,0.02212,90542.0,90529.0,0.01104618]
[1768068773593,0.29322529,90540.0,90529.0,0.01104618]
[1768068775119,0.02212,90542.0,90529.0,0.01104618]
[1768068780479,0.02212,90542.0,90528.0,0.058349]
[1768068780835,0.03316459,90542.0,90528.0,0.058349]
[1768068781577,0.02212,90542.0,90528.0,0.058349]
[1768068781742,0.03316459,90542.0,90528.0,0.058349]
[1768068782082,0.02212,90542.0,90529.0,0.01104618]
[1768068782241,0.02212,90542.0,90528.0,0.058349]
[1768068782643,0.02212,90542.0,90529.0,0.01104618]
[1768068783150,0.02212,90542.0,90528.0,0.058349]
[1768068783151,0.05087189,90529.0,90526.0,0.00039]
[1768068784208,0.05087189,90529.0,90519.0,0.0110474]
[1768068784209,0.05087189,90529.0,90520.0,0.01104728]
[1768068784874,0.05087189,90529.0,90521.0,0.01104716]
[1768068785290,0.05087189,90529.0,90520.0,0.01104728]
[1768068785874,0.04987289,90529.0,90520.0,0.01104728]
[1768068786617,0.04987289,90529.0,90521.0,0.01104716]
[1768068788673,0.04987289,90529.0,90520.0,0.01104728]
[1768068789414,0.04987289,90529.0,90521.0,0.01104716]
[1768068790793,0.04987289,90529.0,90519.0,0.0110474]
[1768068790947,0.06091907,90529.0,90519.0,0.0110474]
[1768068791395,0.0110463,90528.0,90514.0,0.05707102]
[1768068791690,0.0110463,90528.0,90515.0,0.03315424]
[1768068792417,0.06091907,90529.0,90515.0,0.04420213]
[1768068793598,0.06091907,90529.0,90515.0,0.03315424]
[1768068794386,0.04987289,90529.0,90515.0,0.04420213]
[1768068794611,0.04987289,90529.0,90516.0,0.01104777]
[1768068794868,0.04987289,90529.0,90517.0,0.02212]
[1768068795289,0.04987289,90529.0,90517.0,0.03316764]
[1768068795458,0.04987289,90529.0,90517.0,0.02212]
[1768068795667,0.04987289,90529.0,90517.0,0.03316764]
[1768068796576,0.04987289,90529.0,90518.0,0.01104752]
[1768068797528,0.04987289,90529.0,90517.0,0.03316764]
[1768068798111,0.00023366,90526.0,90517.0,0.02212]
[1768068798286,0.00023366,90526.0,90517.0,0.03316764]
[1768068798489,0.00023366,90526.0,90518.0,0.01104752]
[1768068798702,0.00023366,90526.0,90517.0,0.03316764]
[1768068799438,0.00023366,90526.0,90517.0,0.02212]
[1768068800089,0.00023366,90526.0,90517.0,0.03316606]
[1768068800493,0.00023366,90526.0,90517.0,0.0442137]
[1768068800723,0.00023366,90526.0,90517.0,0.03316606]
[1768068801053,0.00023366,90526.0,90517.0,0.0442137]
[1768068801260,0.00023366,90526.0,90517.0,0.03316606]
[1768068802864,0.00023366,90526.0,90517.0,0.0442137]
[1768068803471,0.00023366,90526.0,90518.0,0.01104752]
[1768068803612,0.00023366,90526.0,90517.0,0.0442137]
[1768068804989,0.00023366,90526.0,90518.0,0.01104752]
[1768068805155,0.00023366,90526.0,90519.0,0.0110474]
[1768068805775,0.00023366,90526.0,90520.0,0.01104728]
[1768068806124,0.00023366,90526.0,90518.0,0.01104752]
[1768068806459,0.00023366,90526.0,90517.0,0.0442137]
[1768068806893,0.00023366,90526.0,90518.0,0.01104752]
[1768068811887,0.00023366,90526.0,90519.0,0.0110474]
[1768068813591,0.00023366,90526.0,90520.0,0.01104728]
[1768068815968,0.00023366,90526.0,90519.0,0.0110474]
[1768068817838,0.00023366,90526.0,90520.0,0.01104728]
[1768068818205,0.00023366,90526.0,90519.0,0.0110474]
[1768068819534,0.00023366,90526.0,90520.0,0.01104728]
[1768068820481,0.00023366,90526.0,90519.0,0.0110474]
[1768068820682,0.00023366,90526.0,90520.0,0.01104728]
[1768068823580,0.00023366,90526.0,90519.0,0.0110474]
[1768068823789,0.00023366,90526.0,90520.0,0.01104728]
[1768068824128,0.00023366,90526.0,90517.0,0.0442137]
[1768068824554,0.00023366,90526.0,90519.0,0.0110474]
[1768068826223,0.00023366,90526.0,90520.0,0.01104728]
[1768068827072,0.09679105,90533.0,90522.0,0.01104703]
[1768068827413,0.09679105,90533.0,90521.0,0.01104716]
[1768068827674,0.09679105,90533.0,90523.0,0.01104691]
[1768068830612,0.30427013,90540.0,90517.0,0.03316606]
[1768068830613,0.04991811,90545.0,90525.0,0.04790175]